[Event "*** SCC Grand Prix: Titled Tuesday Blitz"]
[Site "Chess.com"]
[Date "2020.07.07"]
[Round "7"]
[White "m-garcett"]
[Black "Nemsko"]
[Result "0-1"]
[WhiteElo "2075"]
[BlackElo "2295"]
[TimeControl "180+1"]
[EndTime "11:18:24 PDT"]
[Termination "Nemsko won by resignation"]

1. e4 {[%clk 0:03:00.9]} 1... e5 {[%clk 0:02:57.7]} 2. Nf3 {[%clk 0:02:47.2]}
2... Nc6 {[%clk 0:02:57.3]} 3. Bb5 {[%clk 0:02:46.5]} 3... a6 {[%clk 0:02:55.2]}
4. Ba4 {[%clk 0:02:46.1]} 4... Nf6 {[%clk 0:02:55.5]} 5. O-O {[%clk 0:02:45.2]}
5... Be7 {[%clk 0:02:53.7]} 6. Re1 {[%clk 0:02:43.7]} 6... b5 {[%clk 0:02:51.4]}
7. Bb3 {[%clk 0:02:44.1]} 7... O-O {[%clk 0:02:49.9]} 8. c3 {[%clk 0:02:44.5]}
8... d6 {[%clk 0:02:49.7]} 9. h3 {[%clk 0:02:41.9]} 9... Na5 {[%clk 0:02:43.6]}
10. Bc2 {[%clk 0:02:41.8]} 10... c5 {[%clk 0:02:43.7]} 11. d4 {[%clk 0:02:41.2]}
11... Nd7 {[%clk 0:02:38.6]} 12. d5 {[%clk 0:02:36.9]} 12... Nc4 {[%clk
0:02:36]} 13. b3 {[%clk 0:02:32.8]} 13... Ncb6 {[%clk 0:02:36.1]} 14. Nbd2
{[%clk 0:02:27.3]} 14... Bb7 {[%clk 0:02:16.2]} 15. Nf1 {[%clk 0:02:24.8]} 15...
f5 {[%clk 0:02:06.4]} 16. exf5 {[%clk 0:02:06.9]} 16... Nxd5 {[%clk 0:02:05.2]}
17. Ng3 {[%clk 0:02:03.5]} 17... N7b6 {[%clk 0:01:31.8]} 18. Be4 {[%clk
0:01:59.7]} 18... Nxc3 {[%clk 0:01:30.6]} 19. Qc2 {[%clk 0:01:55.5]} 19... Nxe4
{[%clk 0:01:28.8]} 20. Nxe4 {[%clk 0:01:55.1]} 20... c4 {[%clk 0:01:22.1]} 21.
Neg5 {[%clk 0:01:45.3]} 21... Bxg5 {[%clk 0:01:12.6]} 22. Nxg5 {[%clk
0:01:42.8]} 22... Qf6 {[%clk 0:01:13]} 23. Ne6 {[%clk 0:01:33]} 23... Qxf5
{[%clk 0:01:10]} 24. Qxf5 {[%clk 0:01:22.6]} 24... Rxf5 {[%clk 0:01:10.9]} 25.
Be3 {[%clk 0:01:19.5]} 25... Nd5 {[%clk 0:01:05.3]} 26. bxc4 {[%clk 0:01:13.2]}
26... bxc4 {[%clk 0:01:06.2]} 27. Rac1 {[%clk 0:01:08.5]} 27... Re8 {[%clk
0:01:00.8]} 28. g4 {[%clk 0:00:57.5]} 28... Rf7 {[%clk 0:00:48.9]} 29. Ng5
{[%clk 0:00:55.2]} 29... Rc7 {[%clk 0:00:49.3]} 30. Ne4 {[%clk 0:00:49.9]} 30...
Nxe3 {[%clk 0:00:48.1]} 31. Rxe3 {[%clk 0:00:50.5]} 31... Bxe4 {[%clk
0:00:47.6]} 32. Rxe4 {[%clk 0:00:50.3]} 32... d5 {[%clk 0:00:47.8]} 33. Re2
{[%clk 0:00:48.8]} 33... e4 {[%clk 0:00:44.6]} 34. Rd2 {[%clk 0:00:46.6]} 34...
Rc5 {[%clk 0:00:43.4]} 35. Rd4 {[%clk 0:00:46]} 35... c3 {[%clk 0:00:41.8]} 36.
Rc2 {[%clk 0:00:43]} 36... Rb8 {[%clk 0:00:41.4]} 37. Ra4 {[%clk 0:00:38.4]}
37... Rb2 {[%clk 0:00:40.4]} 0-1

[Event "*** SCC Grand Prix: Titled Tuesday Blitz"]
[Site "Chess.com"]
[Date "2020.07.07"]
[Round "7"]
[White "nikitakhoroshev"]
[Black "lucachess49"]
[Result "1-0"]
[WhiteElo "2515"]
[BlackElo "2378"]
[TimeControl "180+1"]
[EndTime "11:18:25 PDT"]
[Termination "nikitakhoroshev won on time"]

1. d4 {[%clk 0:03:00.9]} 1... Nf6 {[%clk 0:02:59.6]} 2. c4 {[%clk 0:03:01.3]}
2... e6 {[%clk 0:02:59.6]} 3. Nc3 {[%clk 0:02:57.7]} 3... Bb4 {[%clk 0:02:59.6]}
4. e3 {[%clk 0:02:57.4]} 4... O-O {[%clk 0:02:59.1]} 5. Ne2 {[%clk 0:02:48.7]}
5... Re8 {[%clk 0:02:57.8]} 6. a3 {[%clk 0:02:48.4]} 6... Bf8 {[%clk 0:02:57.7]}
7. e4 {[%clk 0:02:47.4]} 7... d6 {[%clk 0:02:41.1]} 8. f3 {[%clk 0:02:45.8]}
8... c5 {[%clk 0:02:19.7]} 9. dxc5 {[%clk 0:02:41.3]} 9... dxc5 {[%clk
0:02:20.6]} 10. Be3 {[%clk 0:02:39.5]} 10... Nc6 {[%clk 0:02:17.9]} 11. Qxd8
{[%clk 0:02:35]} 11... Rxd8 {[%clk 0:02:17.1]} 12. Rd1 {[%clk 0:02:35.7]} 12...
Rxd1+ {[%clk 0:02:14.7]} 13. Kxd1 {[%clk 0:02:36.6]} 13... b6 {[%clk 0:02:14.1]}
14. Nf4 {[%clk 0:02:27.1]} 14... Ba6 {[%clk 0:02:13.6]} 15. Nb5 {[%clk
0:02:25.2]} 15... Rd8+ {[%clk 0:02:05.3]} 16. Kc1 {[%clk 0:02:25.1]} 16... g6
{[%clk 0:01:28.1]} 17. Be2 {[%clk 0:02:20.5]} 17... Bxb5 {[%clk 0:00:49.9]} 18.
cxb5 {[%clk 0:02:21.4]} 18... Nd4 {[%clk 0:00:50.4]} 19. Bc4 {[%clk 0:02:21]}
19... Bh6 {[%clk 0:00:48]} 20. Re1 {[%clk 0:02:17.8]} 20... Kg7 {[%clk 0:00:21]}
21. a4 {[%clk 0:02:17.4]} 21... e5 {[%clk 0:00:19.4]} 22. Nd5 {[%clk 0:02:16]}
22... Nxd5 {[%clk 0:00:17.6]} 23. Bxd5 {[%clk 0:02:11.3]} 23... Bxe3+ {[%clk
0:00:17]} 24. Rxe3 {[%clk 0:02:12.2]} 24... f6 {[%clk 0:00:17.4]} 25. Kd1 {[%clk
0:02:05.1]} 25... h5 {[%clk 0:00:16.3]} 26. Rc3 {[%clk 0:02:04.8]} 26... g5
{[%clk 0:00:16]} 27. b4 {[%clk 0:02:04.4]} 27... cxb4 {[%clk 0:00:10.6]} 28.
Rc7+ {[%clk 0:02:04]} 28... Kg6 {[%clk 0:00:09.9]} 29. Rxa7 {[%clk 0:02:03]}
29... Rc8 {[%clk 0:00:09.5]} 30. a5 {[%clk 0:01:46.8]} 30... b3 {[%clk
0:00:09.5]} 31. axb6 {[%clk 0:01:44.3]} 31... b2 {[%clk 0:00:09.1]} 32. Ba2
{[%clk 0:01:44.8]} 32... Nxb5 {[%clk 0:00:03.6]} 33. Rd7 {[%clk 0:01:23.3]}
33... Nc3+ {[%clk 0:00:03.2]} 34. Kc2 {[%clk 0:01:23.7]} 34... Nxa2+ {[%clk
0:00:03]} 35. Kxb2 {[%clk 0:01:24.3]} 35... Nb4 {[%clk 0:00:03]} 36. Kb3 {[%clk
0:01:24.7]} 36... Na6 {[%clk 0:00:02.5]} 37. b7 {[%clk 0:01:19.9]} 1-0

[Event "*** SCC Grand Prix: Titled Tuesday Blitz"]
[Site "Chess.com"]
[Date "2020.07.07"]
[Round "7"]
[White "mbachez"]
[Black "VladimirBugayev"]
[Result "1-0"]
[WhiteElo "2424"]
[BlackElo "2245"]
[TimeControl "180+1"]
[EndTime "11:18:25 PDT"]
[Termination "mbachez won on time"]

1. d4 {[%clk 0:03:00.9]} 1... d5 {[%clk 0:02:59.4]} 2. c4 {[%clk 0:03:00]} 2...
c6 {[%clk 0:02:59.7]} 3. Nc3 {[%clk 0:02:58.8]} 3... Nf6 {[%clk 0:02:59.8]} 4.
cxd5 {[%clk 0:02:58.4]} 4... cxd5 {[%clk 0:02:59.3]} 5. Bf4 {[%clk 0:02:58.3]}
5... a6 {[%clk 0:02:55.1]} 6. e3 {[%clk 0:02:57.9]} 6... Nc6 {[%clk 0:02:55.6]}
7. Bd3 {[%clk 0:02:58]} 7... Bg4 {[%clk 0:02:51.4]} 8. f3 {[%clk 0:02:54.6]}
8... Bd7 {[%clk 0:02:42.5]} 9. Nge2 {[%clk 0:02:53.9]} 9... Nh5 {[%clk
0:02:38.6]} 10. Bg5 {[%clk 0:02:52.6]} 10... h6 {[%clk 0:02:32.8]} 11. Bh4
{[%clk 0:02:52.5]} 11... g5 {[%clk 0:02:31.7]} 12. Bf2 {[%clk 0:02:51.8]} 12...
Nf6 {[%clk 0:02:32.2]} 13. O-O {[%clk 0:02:51.3]} 13... Bg7 {[%clk 0:02:30]} 14.
Rc1 {[%clk 0:02:50.2]} 14... e5 {[%clk 0:02:18.5]} 15. Na4 {[%clk 0:02:34.7]}
15... O-O {[%clk 0:01:38.3]} 16. Nc5 {[%clk 0:02:28]} 16... Qb6 {[%clk
0:01:35.5]} 17. Rc3 {[%clk 0:02:15.7]} 17... exd4 {[%clk 0:01:24.7]} 18. exd4
{[%clk 0:02:06.4]} 18... Bc8 {[%clk 0:01:24.7]} 19. Re1 {[%clk 0:01:53.1]} 19...
Nd8 {[%clk 0:01:01]} 20. Bb1 {[%clk 0:01:51.6]} 20... Ne6 {[%clk 0:00:56.7]} 21.
Ng3 {[%clk 0:01:49.9]} 21... Nf4 {[%clk 0:00:49.1]} 22. Rb3 {[%clk 0:01:42.7]}
22... Qd6 {[%clk 0:00:47.9]} 23. Nxb7 {[%clk 0:01:38.5]} 23... Bxb7 {[%clk
0:00:47]} 24. Rxb7 {[%clk 0:01:39.4]} 24... Rab8 {[%clk 0:00:46.1]} 25. Nf5
{[%clk 0:01:36.9]} 25... Qd8 {[%clk 0:00:38.5]} 26. Ne7+ {[%clk 0:01:34.5]}
26... Kh8 {[%clk 0:00:38.1]} 27. Nc6 {[%clk 0:01:34.6]} 27... Qd6 {[%clk
0:00:36.6]} 28. Rxb8 {[%clk 0:01:33.7]} 28... Rxb8 {[%clk 0:00:36.7]} 29. Nxb8
{[%clk 0:01:34]} 29... Qxb8 {[%clk 0:00:36.7]} 30. Qc2 {[%clk 0:01:32.8]} 30...
Bf8 {[%clk 0:00:31.2]} 31. h4 {[%clk 0:01:26.6]} 31... Kg7 {[%clk 0:00:29.5]}
32. hxg5 {[%clk 0:01:26.6]} 32... hxg5 {[%clk 0:00:28.6]} 33. Be3 {[%clk
0:01:26.9]} 33... Ne6 {[%clk 0:00:19.7]} 34. Kf2 {[%clk 0:01:24.7]} 34... Bb4
{[%clk 0:00:19.5]} 35. Rh1 {[%clk 0:01:24.2]} 35... Qd6 {[%clk 0:00:13.9]} 36.
Qf5 {[%clk 0:01:23.6]} 36... Ba5 {[%clk 0:00:06.2]} 37. Bxg5 {[%clk 0:01:22.9]}
37... Bd8 {[%clk 0:00:04.9]} 38. Bxf6+ {[%clk 0:01:20.6]} 38... Bxf6 {[%clk
0:00:04]} 39. Rh7+ {[%clk 0:01:20.8]} 39... Kf8 {[%clk 0:00:04.1]} 40. Qxf6
{[%clk 0:01:21.2]} 1-0

[Event "*** SCC Grand Prix: Titled Tuesday Blitz"]
[Site "Chess.com"]
[Date "2020.07.07"]
[Round "7"]
[White "Raja3401"]
[Black "PaulfromSPb"]
[Result "0-1"]
[WhiteElo "2765"]
[BlackElo "2623"]
[TimeControl "180+1"]
[EndTime "11:18:32 PDT"]
[Termination "PaulfromSPb won by resignation"]

1. e4 {[%clk 0:03:00.9]} 1... c5 {[%clk 0:02:59.7]} 2. Nf3 {[%clk 0:03:01.2]}
2... d6 {[%clk 0:02:59.6]} 3. d4 {[%clk 0:03:01.6]} 3... cxd4 {[%clk 0:03:00.5]}
4. Nxd4 {[%clk 0:03:02.5]} 4... Nf6 {[%clk 0:03:00.8]} 5. Nc3 {[%clk 0:03:02.9]}
5... a6 {[%clk 0:03:01.1]} 6. Bg5 {[%clk 0:03:03.3]} 6... Nbd7 {[%clk
0:02:59.9]} 7. Qe2 {[%clk 0:03:02.6]} 7... g6 {[%clk 0:02:59.3]} 8. f4 {[%clk
0:03:01.1]} 8... Qb6 {[%clk 0:02:59.3]} 9. O-O-O {[%clk 0:03:00.1]} 9... e5
{[%clk 0:02:59.4]} 10. Kb1 {[%clk 0:02:22.5]} 10... Bg7 {[%clk 0:02:47.4]} 11.
Nb3 {[%clk 0:02:05.8]} 11... O-O {[%clk 0:02:43.4]} 12. h4 {[%clk 0:02:06]}
12... exf4 {[%clk 0:02:30.5]} 13. h5 {[%clk 0:01:59.7]} 13... Ne5 {[%clk
0:02:10.2]} 14. hxg6 {[%clk 0:01:43.9]} 14... hxg6 {[%clk 0:02:00.3]} 15. Qe1
{[%clk 0:01:28.1]} 15... Bg4 {[%clk 0:01:54]} 16. Qh4 {[%clk 0:01:25.4]} 16...
Nh5 {[%clk 0:01:50.4]} 17. Nd5 {[%clk 0:01:23.1]} 17... Qa7 {[%clk 0:01:39.5]}
18. Ne7+ {[%clk 0:00:45.5]} 18... Kh7 {[%clk 0:01:39]} 19. Rxd6 {[%clk
0:00:46.4]} 19... Rad8 {[%clk 0:01:24.5]} 20. Rxd8 {[%clk 0:00:21.8]} 20... Rxd8
{[%clk 0:01:25.4]} 21. Bc4 {[%clk 0:00:22.5]} 21... Rd1+ {[%clk 0:01:06.5]} 22.
Rxd1 {[%clk 0:00:21]} 22... Bxd1 {[%clk 0:01:07.4]} 23. Bd5 {[%clk 0:00:10.8]}
23... Qg1 {[%clk 0:01:03.7]} 24. Nc1 {[%clk 0:00:08.9]} 24... Qxg2 {[%clk
0:01:03.1]} 25. Bb3 {[%clk 0:00:08.5]} 25... Nc4 {[%clk 0:00:59.1]} 26. Nd5
{[%clk 0:00:03.4]} 26... Nd2+ {[%clk 0:00:57.7]} 27. Ka1 {[%clk 0:00:03.6]}
27... Nxb3+ {[%clk 0:00:57.7]} 28. Nxb3 {[%clk 0:00:03.6]} 28... Bxc2 {[%clk
0:00:56.2]} 29. Nc3 {[%clk 0:00:01.5]} 29... Qf1+ {[%clk 0:00:53.3]} 0-1

[Event "*** SCC Grand Prix: Titled Tuesday Blitz"]
[Site "Chess.com"]
[Date "2020.07.07"]
[Round "7"]
[White "BJthechessgod"]
[Black "Savva09022009"]
[Result "0-1"]
[WhiteElo "2326"]
[BlackElo "2463"]
[TimeControl "180+1"]
[EndTime "11:18:32 PDT"]
[Termination "Savva09022009 won on time"]

1. e4 {[%clk 0:03:00.9]} 1... c5 {[%clk 0:02:59.8]} 2. Nf3 {[%clk 0:03:00.4]}
2... Nc6 {[%clk 0:03:00.2]} 3. Bb5 {[%clk 0:03:00]} 3... Nf6 {[%clk 0:02:58.9]}
4. e5 {[%clk 0:02:59.6]} 4... Ng4 {[%clk 0:02:58.4]} 5. Bxc6 {[%clk 0:02:55.5]}
5... dxc6 {[%clk 0:02:59.3]} 6. h3 {[%clk 0:02:52.9]} 6... Nh6 {[%clk
0:02:57.6]} 7. g4 {[%clk 0:02:27.6]} 7... f6 {[%clk 0:02:42.4]} 8. d3 {[%clk
0:02:15.3]} 8... Nf7 {[%clk 0:02:32.8]} 9. Nc3 {[%clk 0:02:09]} 9... fxe5 {[%clk
0:02:27]} 10. Qe2 {[%clk 0:01:56.6]} 10... Qc7 {[%clk 0:02:21.7]} 11. Be3 {[%clk
0:01:44.4]} 11... e6 {[%clk 0:02:19.1]} 12. Ne4 {[%clk 0:01:41]} 12... b6 {[%clk
0:02:14.3]} 13. O-O-O {[%clk 0:01:28.8]} 13... Be7 {[%clk 0:02:12.6]} 14. Rdg1
{[%clk 0:01:00.2]} 14... O-O {[%clk 0:02:11.7]} 15. g5 {[%clk 0:00:57]} 15...
Nd6 {[%clk 0:02:09.4]} 16. Nxd6 {[%clk 0:00:51.2]} 16... Bxd6 {[%clk 0:02:05.3]}
17. Nd2 {[%clk 0:00:51.7]} 17... e4 {[%clk 0:01:58.6]} 18. Nxe4 {[%clk
0:00:49.6]} 18... Be5 {[%clk 0:01:57.6]} 19. h4 {[%clk 0:00:39.3]} 19... c4
{[%clk 0:01:49]} 20. d4 {[%clk 0:00:37.7]} 20... Bf4 {[%clk 0:01:48]} 21. Qxc4
{[%clk 0:00:33.3]} 21... Bb7 {[%clk 0:01:19.2]} 22. Qxe6+ {[%clk 0:00:22.4]}
22... Kh8 {[%clk 0:01:19]} 23. Qg4 {[%clk 0:00:20.8]} 23... Rae8 {[%clk
0:01:17.9]} 24. Nc3 {[%clk 0:00:15.7]} 24... c5 {[%clk 0:01:11]} 25. Rh3 {[%clk
0:00:10.8]} 25... cxd4 {[%clk 0:01:09.2]} 26. Bxf4 {[%clk 0:00:05.1]} 26... Rxf4
{[%clk 0:01:10.1]} 27. Qg3 {[%clk 0:00:04.1]} 27... dxc3 {[%clk 0:01:09.3]} 28.
bxc3 {[%clk 0:00:02.7]} 28... Ref8 {[%clk 0:01:08.7]} 29. Kb1 {[%clk 0:00:02.4]}
29... Qc6 {[%clk 0:01:07]} 30. g6 {[%clk 0:00:02]} 30... Qb5+ {[%clk 0:01:06.9]}
31. Kc1 {[%clk 0:00:02.2]} 31... h6 {[%clk 0:01:07.5]} 32. h5 {[%clk 0:00:02.5]}
32... Qa5 {[%clk 0:01:06.6]} 33. Qd3 {[%clk 0:00:02.5]} 33... Qxa2 {[%clk
0:01:05.8]} 34. Kd2 {[%clk 0:00:03]} 34... Rxf2+ {[%clk 0:01:05.5]} 35. Ke1
{[%clk 0:00:01.4]} 35... Qe6+ {[%clk 0:01:06]} 0-1

[Event "*** SCC Grand Prix: Titled Tuesday Blitz"]
[Site "Chess.com"]
[Date "2020.07.07"]
[Round "7"]
[White "swisspower96"]
[Black "MergenKakabaev"]
[Result "0-1"]
[WhiteElo "2613"]
[BlackElo "2453"]
[TimeControl "180+1"]
[EndTime "11:18:33 PDT"]
[Termination "MergenKakabaev won by checkmate"]

1. d4 {[%clk 0:03:00.9]} 1... d5 {[%clk 0:02:59.6]} 2. c4 {[%clk 0:03:00.3]}
2... c6 {[%clk 0:02:59.5]} 3. cxd5 {[%clk 0:02:59.5]} 3... cxd5 {[%clk
0:02:59.3]} 4. Bf4 {[%clk 0:03:00.2]} 4... Nf6 {[%clk 0:02:58.7]} 5. e3 {[%clk
0:03:00.5]} 5... Nc6 {[%clk 0:02:58.7]} 6. Nc3 {[%clk 0:03:00.9]} 6... Bg4
{[%clk 0:02:58.2]} 7. f3 {[%clk 0:02:56.8]} 7... Bd7 {[%clk 0:02:57.2]} 8. Bd3
{[%clk 0:02:52.7]} 8... e6 {[%clk 0:02:56.6]} 9. Nge2 {[%clk 0:02:50.8]} 9...
Nb4 {[%clk 0:02:56]} 10. Bb1 {[%clk 0:02:48.5]} 10... Qb6 {[%clk 0:02:55.7]} 11.
a3 {[%clk 0:02:23.9]} 11... Nc6 {[%clk 0:02:54.1]} 12. b4 {[%clk 0:02:01.6]}
12... Rc8 {[%clk 0:02:41.8]} 13. Kf2 {[%clk 0:01:53.7]} 13... Nh5 {[%clk
0:02:33.7]} 14. Na4 {[%clk 0:01:40.9]} 14... Qd8 {[%clk 0:02:32.6]} 15. Nc5
{[%clk 0:01:40.8]} 15... Nxf4 {[%clk 0:02:31.3]} 16. Nxf4 {[%clk 0:01:39.2]}
16... b6 {[%clk 0:02:31.2]} 17. Ncd3 {[%clk 0:01:28.4]} 17... Bd6 {[%clk
0:02:30]} 18. h4 {[%clk 0:01:28.4]} 18... a5 {[%clk 0:02:22.4]} 19. b5 {[%clk
0:00:50.6]} 19... Ne7 {[%clk 0:02:21]} 20. a4 {[%clk 0:00:49.8]} 20... Ng6
{[%clk 0:02:20.7]} 21. Nh5 {[%clk 0:00:41.7]} 21... O-O {[%clk 0:02:10.3]} 22.
g3 {[%clk 0:00:36.5]} 22... e5 {[%clk 0:01:59.1]} 23. dxe5 {[%clk 0:00:21.6]}
23... Nxe5 {[%clk 0:01:56.9]} 24. Nhf4 {[%clk 0:00:22.1]} 24... Be6 {[%clk
0:01:43]} 25. Nxe6 {[%clk 0:00:18.6]} 25... fxe6 {[%clk 0:01:43.9]} 26. Nf4
{[%clk 0:00:19]} 26... Qf6 {[%clk 0:01:38.9]} 27. Kg2 {[%clk 0:00:18.4]} 27...
Nc4 {[%clk 0:01:31.7]} 28. Qd3 {[%clk 0:00:14.3]} 28... g6 {[%clk 0:01:24.7]}
29. Ra2 {[%clk 0:00:13.5]} 29... e5 {[%clk 0:00:59.4]} 30. Nxd5 {[%clk
0:00:03.4]} 30... Qxf3+ {[%clk 0:00:58.3]} 31. Kh2 {[%clk 0:00:03.9]} 31... e4
{[%clk 0:00:57]} 32. Qxe4 {[%clk 0:00:02.9]} 32... Qxg3# {[%clk 0:00:55.8]} 0-1

[Event "*** SCC Grand Prix: Titled Tuesday Blitz"]
[Site "Chess.com"]
[Date "2020.07.07"]
[Round "7"]
[White "binbin239"]
[Black "Jungle_Jaguar"]
[Result "1-0"]
[WhiteElo "2534"]
[BlackElo "2650"]
[TimeControl "180+1"]
[EndTime "11:18:34 PDT"]
[Termination "binbin239 won on time"]

1. d4 {[%clk 0:03:00.9]} 1... d5 {[%clk 0:02:59.6]} 2. c4 {[%clk 0:02:54.4]}
2... c6 {[%clk 0:03:00.1]} 3. Nf3 {[%clk 0:02:52]} 3... Nf6 {[%clk 0:03:00.2]}
4. Qc2 {[%clk 0:02:51.8]} 4... e6 {[%clk 0:02:58.8]} 5. g3 {[%clk 0:02:50.4]}
5... Nbd7 {[%clk 0:02:58.1]} 6. Bg2 {[%clk 0:02:49.9]} 6... Bb4+ {[%clk
0:02:47]} 7. Bd2 {[%clk 0:02:48.9]} 7... Bxd2+ {[%clk 0:02:47.2]} 8. Nbxd2
{[%clk 0:02:45]} 8... O-O {[%clk 0:02:43.4]} 9. O-O {[%clk 0:02:42.2]} 9... b6
{[%clk 0:02:27.2]} 10. e4 {[%clk 0:02:20.8]} 10... dxc4 {[%clk 0:02:01]} 11.
Nxc4 {[%clk 0:02:19.2]} 11... Ba6 {[%clk 0:02:00.3]} 12. Rfd1 {[%clk 0:02:18.6]}
12... Qe7 {[%clk 0:01:58]} 13. Ne3 {[%clk 0:02:09.6]} 13... Rac8 {[%clk
0:01:51.2]} 14. Rac1 {[%clk 0:01:58.7]} 14... Rfd8 {[%clk 0:01:45.5]} 15. a3
{[%clk 0:01:43.6]} 15... c5 {[%clk 0:01:26.1]} 16. d5 {[%clk 0:01:42.5]} 16...
exd5 {[%clk 0:01:26.5]} 17. exd5 {[%clk 0:01:41.1]} 17... Ne5 {[%clk 0:01:24.8]}
18. Nf5 {[%clk 0:01:32]} 18... Nxf3+ {[%clk 0:01:23.6]} 19. Bxf3 {[%clk
0:01:32.2]} 19... Qd7 {[%clk 0:01:23.7]} 20. d6 {[%clk 0:01:30.3]} 20... Kh8
{[%clk 0:01:10.7]} 21. Ne7 {[%clk 0:01:30.1]} 21... Ne8 {[%clk 0:00:40.9]} 22.
Nxc8 {[%clk 0:01:19.8]} 22... Bxc8 {[%clk 0:00:41.3]} 23. Rd2 {[%clk 0:01:16.1]}
23... Nxd6 {[%clk 0:00:34.4]} 24. Rcd1 {[%clk 0:01:16.2]} 24... Qe7 {[%clk
0:00:32.9]} 25. Kg2 {[%clk 0:01:04.8]} 25... Qf6 {[%clk 0:00:32]} 26. Qa4 {[%clk
0:01:01.3]} 26... a5 {[%clk 0:00:09.1]} 27. Rxd6 {[%clk 0:01:00.7]} 27... Bh3+
{[%clk 0:00:03]} 28. Kxh3 {[%clk 0:00:55.1]} 1-0

[Event "*** SCC Grand Prix: Titled Tuesday Blitz"]
[Site "Chess.com"]
[Date "2020.07.07"]
[Round "7"]
[White "SerGo055"]
[Black "Semen_Khanin"]
[Result "0-1"]
[WhiteElo "2557"]
[BlackElo "2714"]
[TimeControl "180+1"]
[EndTime "11:18:36 PDT"]
[Termination "Semen_Khanin won by resignation"]

1. d4 {[%clk 0:03:00.9]} 1... Nf6 {[%clk 0:02:59.5]} 2. Nf3 {[%clk 0:03:00.3]}
2... g6 {[%clk 0:02:59.4]} 3. c4 {[%clk 0:02:58.9]} 3... Bg7 {[%clk 0:02:59.9]}
4. Nc3 {[%clk 0:02:59.2]} 4... d5 {[%clk 0:03:00.1]} 5. e3 {[%clk 0:02:53.8]}
5... O-O {[%clk 0:02:59]} 6. Qb3 {[%clk 0:02:53]} 6... dxc4 {[%clk 0:02:57.5]}
7. Bxc4 {[%clk 0:02:52.9]} 7... c5 {[%clk 0:02:56]} 8. dxc5 {[%clk 0:02:51.9]}
8... Nbd7 {[%clk 0:02:55.7]} 9. Qa3 {[%clk 0:02:49]} 9... Qc7 {[%clk 0:02:52.8]}
10. O-O {[%clk 0:02:48.9]} 10... Qxc5 {[%clk 0:02:51.3]} 11. Qxc5 {[%clk
0:02:45.3]} 11... Nxc5 {[%clk 0:02:51.5]} 12. Bd2 {[%clk 0:02:39.5]} 12... Nfe4
{[%clk 0:02:51.1]} 13. Rac1 {[%clk 0:02:35.7]} 13... Bg4 {[%clk 0:02:44.9]} 14.
Be1 {[%clk 0:02:28.2]} 14... Rac8 {[%clk 0:02:39.1]} 15. Bd5 {[%clk 0:02:21.4]}
15... Nd3 {[%clk 0:02:15.9]} 16. Rc2 {[%clk 0:01:46.1]} 16... Nxc3 {[%clk
0:01:44.2]} 17. Bxc3 {[%clk 0:01:39.4]} 17... Nb4 {[%clk 0:01:28]} 18. Rd2
{[%clk 0:01:05.4]} 18... Bxc3 {[%clk 0:01:26.1]} 19. bxc3 {[%clk 0:01:04.6]}
19... Nxd5 {[%clk 0:01:26.1]} 20. Rxd5 {[%clk 0:01:04.4]} 20... Rxc3 {[%clk
0:01:25.9]} 21. Ra5 {[%clk 0:01:00.2]} 21... a6 {[%clk 0:01:24.4]} 22. Rb1
{[%clk 0:00:59.4]} 22... Rfc8 {[%clk 0:01:24.4]} 23. h3 {[%clk 0:00:55]} 23...
Rc1+ {[%clk 0:01:22.6]} 24. Rxc1 {[%clk 0:00:54.6]} 24... Rxc1+ {[%clk
0:01:23.5]} 25. Kh2 {[%clk 0:00:55.1]} 25... Bd7 {[%clk 0:01:15.3]} 26. Kg3
{[%clk 0:00:51.9]} 26... f6 {[%clk 0:01:13.7]} 27. Nd4 {[%clk 0:00:47.8]} 27...
Kf7 {[%clk 0:01:12]} 28. f4 {[%clk 0:00:39.2]} 28... Rc4 {[%clk 0:00:46]} 29.
Kf3 {[%clk 0:00:29]} 29... Ra4 {[%clk 0:00:44.9]} 30. Rxa4 {[%clk 0:00:28.6]}
30... Bxa4 {[%clk 0:00:44.9]} 31. g4 {[%clk 0:00:26.6]} 31... e5 {[%clk
0:00:43.1]} 32. fxe5 {[%clk 0:00:25.8]} 32... fxe5 {[%clk 0:00:43.4]} 33. Ne2
{[%clk 0:00:26.2]} 33... Bd1 {[%clk 0:00:43.5]} 34. Kf2 {[%clk 0:00:25.9]} 34...
Bxe2 {[%clk 0:00:43.3]} 35. Kxe2 {[%clk 0:00:26.8]} 35... Ke6 {[%clk 0:00:42.6]}
0-1

[Event "*** SCC Grand Prix: Titled Tuesday Blitz"]
[Site "Chess.com"]
[Date "2020.07.07"]
[Round "7"]
[White "KuzubovYuriy"]
[Black "Mikhail_Golubev"]
[Result "1-0"]
[WhiteElo "2842"]
[BlackElo "2607"]
[TimeControl "180+1"]
[EndTime "11:18:40 PDT"]
[Termination "KuzubovYuriy won by resignation"]

1. d4 {[%clk 0:03:00.9]} 1... Nf6 {[%clk 0:02:59.8]} 2. c4 {[%clk 0:03:00.4]}
2... g6 {[%clk 0:02:59.3]} 3. Nc3 {[%clk 0:02:59]} 3... Bg7 {[%clk 0:02:59.4]}
4. e4 {[%clk 0:02:57.2]} 4... d6 {[%clk 0:02:59.5]} 5. Nf3 {[%clk 0:02:57.6]}
5... O-O {[%clk 0:02:59.2]} 6. Be2 {[%clk 0:02:57.8]} 6... e5 {[%clk 0:02:59.3]}
7. O-O {[%clk 0:02:57.4]} 7... Nc6 {[%clk 0:02:59.4]} 8. d5 {[%clk 0:02:54.9]}
8... Ne7 {[%clk 0:02:59.1]} 9. b4 {[%clk 0:02:46.9]} 9... Ne8 {[%clk 0:02:58.1]}
10. Nd2 {[%clk 0:02:44.9]} 10... f5 {[%clk 0:02:57.7]} 11. f3 {[%clk 0:02:45]}
11... Nf6 {[%clk 0:02:53.9]} 12. c5 {[%clk 0:02:43.1]} 12... f4 {[%clk
0:02:53.5]} 13. Nc4 {[%clk 0:02:36.8]} 13... g5 {[%clk 0:02:53.3]} 14. Ba3
{[%clk 0:02:31.9]} 14... Ng6 {[%clk 0:02:50.7]} 15. b5 {[%clk 0:02:29.1]} 15...
dxc5 {[%clk 0:02:50.6]} 16. Bxc5 {[%clk 0:02:27.8]} 16... Rf7 {[%clk 0:02:50.6]}
17. Qb3 {[%clk 0:02:22.9]} 17... g4 {[%clk 0:02:41.2]} 18. fxg4 {[%clk
0:02:13.2]} 18... Nxg4 {[%clk 0:02:26.5]} 19. d6 {[%clk 0:02:07.9]} 19... Qh4
{[%clk 0:01:56.5]} 20. Bxg4 {[%clk 0:01:57.1]} 20... Bxg4 {[%clk 0:01:54.8]} 21.
dxc7 {[%clk 0:01:41.2]} 21... Be6 {[%clk 0:01:43.3]} 22. Nd5 {[%clk 0:01:34]}
22... f3 {[%clk 0:01:16.3]} 23. b6 {[%clk 0:01:05.7]} 23... Qxe4 {[%clk
0:00:51.2]} 24. Nd6 {[%clk 0:01:04.3]} 24... Qxd5 {[%clk 0:00:23.3]} 25. Qxd5
{[%clk 0:01:03.4]} 25... Bxd5 {[%clk 0:00:23]} 26. Nxf7 {[%clk 0:01:02.3]} 26...
Kxf7 {[%clk 0:00:19.3]} 27. Rad1 {[%clk 0:00:54.6]} 27... Nf4 {[%clk 0:00:19.2]}
28. Rxf3 {[%clk 0:00:50.9]} 28... axb6 {[%clk 0:00:10.2]} 29. Rxd5 {[%clk
0:00:47.7]} 29... bxc5 {[%clk 0:00:05.9]} 30. Rd8 {[%clk 0:00:46.8]} 30... Rxa2
{[%clk 0:00:05.5]} 31. c8=Q {[%clk 0:00:44.2]} 1-0